fUST/lending_fUST_20250401
["ID","MTS","AMOUNT","RATE_DAILY","PERIOD"]
[356968029,1743510651076,-500.0,0.00017878,2]
[356968030,1743510651086,-500.0,0.0001788,2]
[356968031,1743510651096,-500.0,0.0001788,2]
[356968032,1743510651106,-500.0,0.00017881,2]
[356968033,1743510651115,-500.0,0.00017881,2]
[356968034,1743510651125,-500.0,0.00017881,2]
[356968035,1743510651135,-500.0,0.00017881,2]
[356968036,1743510651145,-1051.12,0.00017881,2]
[356968037,1743510651155,-500.0,0.00017881,2]
[356968038,1743510651165,-678.16,0.00017881,2]
[356968039,1743510651174,-500.0,0.00017881,2]
[356968040,1743510651184,-151.0,0.000179,2]
[356968041,1743510651194,-151.0,0.00018,2]
[356968042,1743510651203,-169.15,0.00018,2]
[356968043,1743510651213,-250.0,0.00018,30]
[356968044,1743510651222,-144277.23294835,0.00018,2]
[356968045,1743510651232,-170.04,0.00018082,2]
[356968046,1743510651241,-500.0,0.00018082,2]
[356968047,1743510651251,-500.0,0.00018082,2]
[356968048,1743510651261,-500.0,0.00018082,2]
[356968049,1743510651270,-500.0,0.00018082,2]
[356968050,1743510651279,-500.0,0.00018082,2]
[356968051,1743510651289,-500.0,0.00018082,2]
[356968052,1743510651298,-500.0,0.00018082,2]
[356968053,1743510651308,-500.0,0.00018082,2]
[356968054,1743510651318,-500.0,0.00018082,2]
[356968055,1743510651327,-500.0,0.00018082,2]
[356968056,1743510651337,-389.71,0.00018082,2]
[356968057,1743510651347,-206.65,0.00018082,2]
[356968058,1743510651357,-500.0,0.00018082,2]
[356968059,1743510651367,-500.0,0.00018082,2]
[356968060,1743510651377,-558.75,0.00018082,2]
[356968061,1743510651387,-500.0,0.00018082,2]
[356968062,1743510651396,-500.0,0.00018082,2]
[356968063,1743510651406,-500.0,0.00018082,2]
[356968064,1743510651415,-604.27,0.00018082,2]
[356968065,1743510651425,-500.0,0.00018082,2]
[356968066,1743510651436,-500.0,0.00018082,2]
[356968067,1743510651446,-500.0,0.00018082,2]
[356968068,1743510651455,-500.0,0.00018082,2]
[356968069,1743510651466,-500.0,0.00018082,2]
[356968070,1743510651476,-5737.02,0.00018082,2]
[356968071,1743510651486,-1409.16,0.00018082,2]
[356968072,1743510651495,-500.0,0.00018082,2]
[356968073,1743510651504,-916.33,0.00018082,2]
[356968074,1743510651514,-979.26,0.00018082,2]
[356968075,1743510651523,-582.09,0.00018082,2]
[356968076,1743510651533,-500.0,0.00018082,2]
[356968077,1743510651543,-500.0,0.00018082,2]
[356968078,1743510651552,-1721.92,0.00018082,2]
[356968079,1743510651562,-729.05,0.00018082,2]
[356968080,1743510651571,-3713.92,0.00018082,2]
[356968081,1743510651581,-500.0,0.00018082,2]
[356968082,1743510651591,-500.0,0.00018082,2]
[356968083,1743510651600,-1844.35,0.00018082,2]
[356968084,1743510651611,-778.77,0.00018082,2]
[356968085,1743510651621,-500.0,0.00018082,2]
[356968086,1743510651631,-693.62,0.00018082,2]
[356968087,1743510651641,-334.01224926,0.00018082,2]
[356968088,1743510651651,-527.37,0.00018082,2]
[356968089,1743510651660,-500.0,0.00018082,2]
[356968090,1743510651670,-500.0,0.00018082,2]
[356968091,1743510651680,-4905.13,0.00018082,2]
[356968092,1743510651690,-500.0,0.00018082,2]
[356968093,1743510651699,-1706.19,0.00018082,2]
[356968094,1743510651709,-500.0,0.00018082,2]
[356968095,1743510651723,-500.0,0.00018082,2]
[356968096,1743510651733,-500.0,0.00018082,2]
[356968097,1743510651744,-500.0,0.00018082,2]
[356968098,1743510651754,-500.0,0.00018082,2]
[356968099,1743510651765,-500.0,0.00018082,2]
[356968100,1743510651774,-661.33,0.00018082,2]
[356968101,1743510651785,-500.0,0.00018082,2]
[356968102,1743510651795,-1609.5,0.00018082,2]
[356968103,1743510651806,-1086.11,0.00018082,2]
[356968104,1743510651816,-500.0,0.00018082,2]
[356968105,1743510651826,-500.0,0.00018082,2]
[356968106,1743510651836,-1376.57,0.00018082,2]
[356968107,1743510651846,-500.0,0.00018082,2]
[356968108,1743510651856,-525.22,0.00018082,2]
[356968109,1743510651866,-500.0,0.00018082,2]
[356968110,1743510651875,-500.0,0.00018082,2]
[356968111,1743510651885,-500.0,0.00018082,2]
[356968112,1743510651896,-500.0,0.00018082,2]
[356968113,1743510651906,-557.44,0.00018082,2]
[356968114,1743510651915,-1175.01,0.00018082,2]
[356968115,1743510651926,-500.0,0.00018082,2]
[356968116,1743510651935,-500.0,0.00018082,2]
[356968117,1743510651946,-1986.96,0.00018082,2]
[356968118,1743510651956,-500.0,0.00018082,2]
[356968119,1743510651966,-500.0,0.00018082,2]
[356968120,1743510651976,-500.0,0.00018082,2]
[356968121,1743510651986,-665.82,0.00018082,2]
[356968122,1743510651996,-535.92,0.00018082,2]
[356968123,1743510652006,-500.0,0.00018082,2]
[356968124,1743510652016,-500.0,0.00018082,2]
[356968125,1743510652026,-500.0,0.00018082,2]
[356968126,1743510652036,-500.0,0.00018082,2]
[356968127,1743510652125,-500.0,0.00018082,2]
[356968128,1743510652136,-769.27,0.00018082,2]
[356968129,1743510652146,-500.0,0.00018082,2]
[356968130,1743510652156,-826.66,0.00018082,2]
[356968131,1743510652166,-505.42,0.00018082,2]
[356968132,1743510652175,-744.18,0.00018082,2]
[356968133,1743510652184,-500.0,0.00018082,2]
[356968134,1743510652193,-842.38,0.00018082,2]
[356968135,1743510652203,-733.48,0.00018082,2]
[356968136,1743510652212,-751.48,0.00018082,2]
[356968137,1743510652222,-500.0,0.00018082,2]
[356968138,1743510652232,-500.0,0.00018082,2]
[356968139,1743510652242,-1885.83,0.00018082,2]
[356968140,1743510652252,-500.0,0.00018082,2]
[356968141,1743510652261,-500.0,0.00018082,2]
[356968142,1743510652271,-500.0,0.00018082,2]
[356968143,1743510652281,-4092.43,0.00018082,2]
[356968144,1743510652291,-500.0,0.00018082,2]
[356968145,1743510652301,-2922.51,0.00018082,2]
[356968146,1743510652311,-500.0,0.00018082,2]
[356968147,1743510652321,-500.0,0.00018082,2]
[356968148,1743510652331,-592.41,0.00018082,2]
[356968149,1743510652340,-500.0,0.00018082,2]
[356968150,1743510652350,-500.0,0.00018082,2]
[356968151,1743510652360,-500.0,0.00018082,2]
[356968152,1743510652369,-500.0,0.00018082,2]
[356968153,1743510652379,-515.16,0.00018152,2]
[356968154,1743510652389,-453.48,0.00018152,2]
[356968155,1743510652399,-500.0,0.00018152,2]
[356968156,1743510652409,-217.68,0.00018152,2]
[356968157,1743510652419,-500.0,0.00018152,2]
[356968158,1743510652429,-558.19,0.00018152,2]
[356968159,1743510652439,-500.0,0.00018152,2]
[356968160,1743510652448,-518.82,0.00018152,2]
[356968161,1743510652458,-500.0,0.00018152,2]
[356968162,1743510652468,-500.0,0.00018152,2]
[356968163,1743510652478,-547.56026486,0.00018152,2]
[356968164,1743510652488,-500.0,0.00018152,2]
[356968165,1743510652498,-500.0,0.00018152,2]
[356968166,1743510652507,-500.0,0.00018152,2]
[356968167,1743510652517,-500.0,0.00018152,2]
[356968168,1743510652526,-500.0,0.00018152,2]
[356968169,1743510652536,-500.0,0.00018152,2]
[356968170,1743510652546,-593.94460193,0.00018152,2]
[356968171,1743510652555,-500.0,0.00018152,2]
[356968172,1743510652565,-500.0,0.00018152,2]
[356968173,1743510652575,-500.0,0.00018152,2]
[356968174,1743510652585,-500.0,0.00018152,2]
[356968175,1743510652594,-500.0,0.00018152,2]
[356968176,1743510652604,-500.0,0.00018152,2]
[356968177,1743510652613,-500.0,0.00018152,2]
[356968178,1743510652623,-500.0,0.00018152,2]
[356968179,1743510652633,-500.0,0.00018152,2]
[356968180,1743510652643,-500.0,0.00018152,2]
[356968181,1743510652652,-500.0,0.00018152,2]
[356968182,1743510652662,-500.0,0.00018152,2]
[356968183,1743510652672,-500.0,0.00018152,2]
[356968184,1743510652682,-500.0,0.00018152,2]
[356968185,1743510652692,-500.0,0.00018152,2]
[356968186,1743510652702,-500.0,0.00018152,2]
[356968187,1743510652712,-500.0,0.00018152,2]
[356968188,1743510652728,-500.0,0.00018154,2]
[356968189,1743510652738,-500.0,0.00018154,2]
[356968190,1743510652749,-500.0,0.00018155,2]
[356968191,1743510652759,-500.0,0.00018155,2]
[356968192,1743510652771,-500.0,0.00018155,2]
[356968193,1743510652781,-230.34595264,0.00018155,2]
[356968194,1743510652791,-1051.12,0.00018155,2]
[356968195,1743510652802,-500.0,0.00018155,2]
[356968196,1743510652812,-678.16,0.00018155,2]
[356968197,1743510652823,-500.0,0.00018155,2]
[356968198,1743510652834,-151.0,0.000182,2]
[356968199,1743510652845,-151.0,0.000183,2]
[356968200,1743510652857,-500.0,0.00018356,2]
[356968201,1743510652869,-461.6,0.00018356,2]
[356968202,1743510652880,-500.0,0.00018356,2]
[356968203,1743510652890,-500.0,0.00018356,2]
[356968204,1743510652901,-500.0,0.00018356,2]
[356968205,1743510652911,-494.95,0.00018356,2]
[356968206,1743510652921,-500.0,0.00018356,2]
[356968207,1743510652930,-500.0,0.00018356,2]
[356968208,1743510652941,-500.0,0.00018356,2]
[356968209,1743510652951,-500.0,0.00018356,2]
[356968210,1743510652960,-500.0,0.00018356,2]
[356968211,1743510652970,-500.0,0.00018356,2]
[356968212,1743510652980,-196.75,0.00018356,2]
[356968213,1743510652990,-500.0,0.00018356,2]
[356968214,1743510653000,-167.34,0.00018356,2]
[356968215,1743510653010,-500.0,0.00018356,2]
[356968216,1743510653020,-500.0,0.00018356,2]
[356968217,1743510653030,-500.0,0.00018356,2]
[356968218,1743510653039,-500.0,0.00018356,2]
[356968219,1743510653049,-500.0,0.00018356,2]
[356968220,1743510653060,-5737.02,0.00018356,2]
[356968221,1743510653069,-1409.16,0.00018356,2]
[356968222,1743510653079,-500.0,0.00018356,2]
[356968223,1743510653088,-916.33,0.00018356,2]
[356968224,1743510653098,-979.26,0.00018356,2]
[356968225,1743510653108,-582.09,0.00018356,2]
[356968226,1743510653118,-500.0,0.00018356,2]
[356968227,1743510653127,-500.0,0.00018356,2]
[356968228,1743510653136,-1721.92,0.00018356,2]
[356968229,1743510653146,-729.05,0.00018356,2]
[356968230,1743510653156,-3713.92,0.00018356,2]
[356968231,1743510653165,-1844.35,0.00018356,2]
[356968232,1743510653174,-778.77,0.00018356,2]
[356968233,1743510653185,-500.0,0.00018356,2]
[356968234,1743510653194,-693.62,0.00018356,2]
[356968235,1743510653204,-500.0,0.00018356,2]
[356968236,1743510653214,-4905.13,0.00018356,2]
[356968237,1743510653223,-1706.19,0.00018356,2]
[356968238,1743510653233,-500.0,0.00018356,2]
[356968239,1743510653244,-500.0,0.00018356,2]
[356968240,1743510653253,-500.0,0.00018356,2]
[356968241,1743510653263,-500.0,0.00018356,2]
[356968242,1743510653275,-516.53,0.00018356,2]
[356968243,1743510653285,-500.0,0.00018356,2]
[356968244,1743510653295,-661.33,0.00018356,2]
[356968245,1743510653375,-639.71652006,0.00018356,2]
[356968246,1743510653386,-1609.5,0.00018356,2]
[356968247,1743510653396,-1086.11,0.00018356,2]
[356968248,1743510653405,-500.0,0.00018356,2]
[356968249,1743510653416,-500.0,0.00018356,2]
[356968250,1743510653426,-1376.57,0.00018356,2]
[356968251,1743510653435,-500.0,0.00018356,2]
[356968252,1743510653446,-525.22,0.00018356,2]
[356968253,1743510653456,-500.0,0.00018356,2]
[356968254,1743510653466,-500.0,0.00018356,2]
[356968255,1743510653475,-500.0,0.00018356,2]
[356968256,1743510653486,-437.68,0.00018356,2]
[356968257,1743510653496,-557.44,0.00018356,2]
[356968258,1743510653506,-1175.01,0.00018356,2]
[356968259,1743510653515,-500.0,0.00018356,2]
[356968260,1743510653525,-500.0,0.00018356,2]
[356968261,1743510653535,-1986.96,0.00018356,2]
[356968262,1743510653545,-500.0,0.00018356,2]
[356968263,1743510653554,-500.0,0.00018356,2]
[356968264,1743510653564,-500.0,0.00018356,2]
[356968265,1743510653574,-665.82,0.00018356,2]
[356968266,1743510653583,-535.92,0.00018356,2]
[356968267,1743510653593,-500.0,0.00018356,2]
[356968268,1743510653603,-500.0,0.00018356,2]
[356968269,1743510653613,-500.0,0.00018356,2]
[356968270,1743510653623,-500.0,0.00018356,2]
[356968271,1743510653632,-500.0,0.00018356,2]
[356968272,1743510653642,-769.27,0.00018356,2]
[356968273,1743510653651,-500.0,0.00018356,2]
[356968274,1743510653662,-826.66,0.00018356,2]
[356968275,1743510653671,-505.42,0.00018356,2]
[356968276,1743510653681,-744.18,0.00018356,2]
[356968277,1743510653691,-500.0,0.00018356,2]
[356968278,1743510653701,-842.38,0.00018356,2]
[356968279,1743510653711,-733.48,0.00018356,2]
[356968280,1743510653721,-751.48,0.00018356,2]
[356968281,1743510653733,-500.0,0.00018356,2]
[356968282,1743510653743,-500.0,0.00018356,2]
[356968283,1743510653753,-1885.83,0.00018356,2]
[356968284,1743510653763,-500.0,0.00018356,2]
[356968285,1743510653775,-500.0,0.00018356,2]
[356968286,1743510653784,-500.0,0.00018356,2]
[356968287,1743510653794,-4092.43,0.00018356,2]
[356968288,1743510653805,-500.0,0.00018356,2]
[356968289,1743510653816,-2922.51,0.00018356,2]
[356968290,1743510653826,-500.0,0.00018356,2]
[356968291,1743510653835,-500.0,0.00018356,2]
[356968292,1743510653846,-592.41,0.00018356,2]
[356968293,1743510653855,-500.0,0.00018356,2]
[356968294,1743510653865,-500.0,0.00018356,2]
[356968295,1743510653875,-500.0,0.00018356,2]
[356968296,1743510653884,-500.0,0.00018356,2]
[356968297,1743510653895,-285.72,0.00018426,2]
[356968298,1743510653906,-500.0,0.00018426,2]
[356968299,1743510653917,-558.19,0.00018426,2]
[356968300,1743510653940,-185.55,0.00018426,2]
[356968301,1743510653957,-500.0,0.00018426,2]
[356968302,1743510653978,-500.0,0.00018426,2]
[356968303,1743510653999,-500.0,0.00018426,2]
[356968304,1743510654019,-500.0,0.00018426,2]
[356968305,1743510654035,-518.19226332,0.00018426,2]
[356968306,1743510654055,-500.0,0.00018426,2]
[356968307,1743510654071,-500.0,0.00018426,2]
[356968308,1743510654088,-500.0,0.00018426,2]
[356968309,1743510654108,-500.0,0.00018426,2]
[356968310,1743510654129,-500.0,0.00018426,2]
[356968311,1743510654143,-500.0,0.00018426,2]
[356968312,1743510654160,-571.2,0.00018426,2]
[356968313,1743510654176,-500.0,0.00018426,2]
[356968314,1743510654193,-500.0,0.00018426,2]
[356968315,1743510654207,-500.0,0.00018426,2]
[356968316,1743510654223,-500.0,0.00018426,2]
[356968317,1743510654239,-500.0,0.00018426,2]
[356968318,1743510654253,-500.0,0.00018426,2]
[356968319,1743510654267,-500.0,0.00018426,2]
[356968320,1743510654282,-500.0,0.00018426,2]
[356968321,1743510654296,-500.0,0.00018426,2]
[356968322,1743510654310,-500.0,0.00018428,2]
[356968323,1743510654328,-500.0,0.00018428,2]
[356968324,1743510654344,-500.0,0.00018429,2]
[356968325,1743510654359,-500.0,0.00018429,2]
[356968326,1743510654375,-500.0,0.00018429,2]
[356968327,1743510654388,-1051.12,0.00018429,2]
[356968328,1743510654403,-500.0,0.00018429,2]
[356968329,1743510654418,-678.16,0.00018429,2]
[356968330,1743510654432,-500.0,0.00018429,2]
[356968331,1743510654447,-151.0,0.000185,2]
[356968332,1743510654461,-1068.91717672,0.000186,2]
[356968333,1743510654477,-1068.91717646,0.000186,2]
[356968334,1743510654491,-1068.91717646,0.000186,2]
[356968335,1743510654505,-1068.91717646,0.000186,2]
[356968336,1743510654519,-1068.91717646,0.000186,2]
[356968337,1743510654533,-500.0,0.0001863,2]
[356968338,1743510654547,-500.0,0.0001863,2]
[356968339,1743510654561,-320.95,0.0001863,2]
[356968340,1743510654577,-516.9,0.0001863,2]
[356968341,1743510654593,-500.0,0.0001863,2]
[356968342,1743510654608,-495.75,0.0001863,2]
[356968343,1743510654623,-500.0,0.0001863,2]
[356968344,1743510654637,-500.0,0.0001863,2]
[356968345,1743510654653,-500.0,0.0001863,2]
[356968346,1743510654668,-426.71,0.0001863,2]
[356968347,1743510654683,-500.0,0.0001863,2]
[356968348,1743510654698,-353.87,0.0001863,2]
[356968349,1743510654713,-500.0,0.0001863,2]
[356968350,1743510654734,-500.0,0.0001863,2]
[356968351,1743510654751,-500.0,0.0001863,2]
[356968352,1743510654766,-500.0,0.0001863,2]
[356968353,1743510654782,-5737.02,0.0001863,2]
[356968354,1743510654902,-1409.16,0.0001863,2]
[356968355,1743510654922,-500.0,0.0001863,2]
[356968356,1743510654932,-916.33,0.0001863,2]
[356968357,1743510654942,-979.26,0.0001863,2]
[356968358,1743510654952,-582.09,0.0001863,2]
[356968359,1743510654962,-500.0,0.0001863,2]
[356968360,1743510654974,-500.0,0.0001863,2]
[356968361,1743510654983,-1721.92,0.0001863,2]
[356968362,1743510654993,-729.05,0.0001863,2]
[356968363,1743510655003,-3713.92,0.0001863,2]
[356968364,1743510655012,-1844.35,0.0001863,2]
[356968365,1743510655021,-778.77,0.0001863,2]
[356968366,1743510655031,-500.0,0.0001863,2]
[356968367,1743510655041,-693.62,0.0001863,2]
[356968368,1743510655051,-500.0,0.0001863,2]
[356968369,1743510655061,-4905.13,0.0001863,2]
[356968370,1743510655071,-1706.19,0.0001863,2]
[356968371,1743510655082,-500.0,0.0001863,2]
[356968372,1743510655093,-403.07,0.0001863,2]
[356968373,1743510655105,-500.0,0.0001863,2]
[356968374,1743510655115,-500.0,0.0001863,2]
[356968375,1743510655125,-500.0,0.0001863,2]
[356968376,1743510655137,-661.33,0.0001863,2]
[356968377,1743510655148,-1609.5,0.0001863,2]
[356968378,1743510655158,-1086.11,0.0001863,2]
[356968379,1743510655168,-500.0,0.0001863,2]
[356968380,1743510655178,-1376.57,0.0001863,2]
[356968381,1743510655188,-525.22,0.0001863,2]
[356968382,1743510655199,-500.0,0.0001863,2]
[356968383,1743510655209,-382.45,0.0001863,2]
[356968384,1743510655223,-557.44,0.0001863,2]
[356968385,1743510655233,-1175.01,0.0001863,2]
[356968386,1743510655243,-500.0,0.0001863,2]
[356968387,1743510655253,-500.0,0.0001863,2]
[356968388,1743510655262,-1986.96,0.0001863,2]
[356968389,1743510655272,-500.0,0.0001863,2]
[356968390,1743510655281,-500.0,0.0001863,2]
[356968391,1743510655291,-665.82,0.0001863,2]
[356968392,1743510655301,-535.92,0.0001863,2]
[356968393,1743510655310,-421.76,0.0001863,2]
[356968394,1743510655320,-500.0,0.0001863,2]
[356968395,1743510655330,-500.0,0.0001863,2]
[356968396,1743510655339,-500.0,0.0001863,2]
[356968397,1743510655349,-500.0,0.0001863,2]
[356968398,1743510655360,-769.27,0.0001863,2]
[356968399,1743510655370,-500.0,0.0001863,2]
[356968400,1743510655381,-826.66,0.0001863,2]
[356968401,1743510655390,-505.42,0.0001863,2]
[356968402,1743510655400,-744.18,0.0001863,2]
[356968403,1743510655410,-500.0,0.0001863,2]
[356968404,1743510655419,-842.38,0.0001863,2]
[356968405,1743510655429,-733.48,0.0001863,2]
[356968406,1743510655438,-751.48,0.0001863,2]
[356968407,1743510655447,-338.12238979,0.0001863,2]
[356968408,1743510655458,-500.0,0.0001863,2]
[356968409,1743510655472,-1885.83,0.0001863,2]
[356968410,1743510655482,-474.29470558,0.0001863,2]
[356968411,1743510655491,-500.0,0.0001863,2]
[356968412,1743510655501,-500.0,0.0001863,2]
[356968413,1743510655510,-4092.43,0.0001863,2]
[356968414,1743510655520,-500.0,0.0001863,2]
[356968415,1743510655529,-2922.51,0.0001863,2]
[356968416,1743510655538,-500.0,0.0001863,2]
[356968417,1743510655548,-500.0,0.0001863,2]
[356968418,1743510655557,-592.41,0.0001863,2]
[356968419,1743510655566,-500.0,0.0001863,2]
[356968420,1743510655576,-500.0,0.0001863,2]
[356968421,1743510655585,-500.0,0.0001863,2]
[356968422,1743510655595,-500.0,0.0001863,2]
[356968423,1743510655605,-151.0,0.000187,2]
[356968424,1743510655614,-500.0,0.000187,2]
[356968425,1743510655624,-558.19,0.000187,2]
[356968426,1743510655634,-563.44,0.000187,2]
[356968427,1743510655644,-500.0,0.000187,2]
[356968428,1743510655654,-500.0,0.000187,2]
[356968429,1743510655664,-500.0,0.000187,2]
[356968430,1743510655675,-500.0,0.000187,2]
[356968431,1743510655685,-500.0,0.000187,2]
[356968432,1743510655697,-500.0,0.000187,2]
[356968433,1743510655707,-500.0,0.000187,2]
[356968434,1743510655720,-500.0,0.000187,2]
[356968435,1743510655734,-500.0,0.000187,2]
[356968436,1743510655743,-500.0,0.000187,2]
[356968437,1743510655753,-526.24,0.00018702,2]
[356968438,1743510655764,-500.0,0.00018702,2]
[356968439,1743510655775,-324.15474304,0.00018703,2]
[356968440,1743510655785,-500.0,0.00018703,2]
[356968441,1743510655795,-500.0,0.00018703,2]
[356968442,1743510655805,-1051.12,0.00018703,2]
[356968443,1743510655815,-500.0,0.00018703,2]
[356968444,1743510655825,-678.16,0.00018703,2]
[356968445,1743510655835,-500.0,0.00018703,2]
[356968446,1743510655844,-151.0,0.00018723,2]
[356968447,1743510655854,-200.0,0.00018723,2]
[356968448,1743510655863,-151.0,0.000188,2]
[356968449,1743510655873,-823.0,0.00018858,2]
[356968450,1743510655883,-500.0,0.00018904,2]
[356968451,1743510655892,-621.6,0.00018904,2]
[356968452,1743510655902,-500.0,0.00018904,2]
[356968453,1743510655912,-500.0,0.00018904,2]
[356968454,1743510655922,-500.0,0.00018904,2]
[356968455,1743510655932,-500.0,0.00018904,2]
[356968456,1743510655942,-500.0,0.00018904,2]
[356968457,1743510655952,-500.0,0.00018904,2]
[356968458,1743510655961,-500.0,0.00018904,2]
[356968459,1743510655972,-361.38,0.00018904,2]
[356968460,1743510655982,-207.06,0.00018904,2]
[356968461,1743510655992,-5737.02,0.00018904,2]
[356968462,1743510656003,-1409.16,0.00018904,2]
[356968463,1743510656013,-500.0,0.00018904,2]
[356968464,1743510656023,-916.33,0.00018904,2]
[356968465,1743510656033,-979.26,0.00018904,2]
[356968466,1743510656043,-582.09,0.00018904,2]
[356968467,1743510656053,-500.0,0.00018904,2]
[356968468,1743510656063,-500.0,0.00018904,2]
[356968469,1743510656073,-1721.92,0.00018904,2]
[356968470,1743510656082,-729.05,0.00018904,2]
[356968471,1743510656093,-3713.92,0.00018904,2]
[356968472,1743510656102,-1844.35,0.00018904,2]
[356968473,1743510656112,-778.77,0.00018904,2]
[356968474,1743510656122,-500.0,0.00018904,2]
[356968475,1743510656132,-693.62,0.00018904,2]
[356968476,1743510656142,-500.0,0.00018904,2]
[356968477,1743510656152,-4905.13,0.00018904,2]
[356968478,1743510656162,-1706.19,0.00018904,2]
[356968479,1743510656172,-500.0,0.00018904,2]
[356968480,1743510656182,-500.0,0.00018904,2]
[356968481,1743510656192,-500.0,0.00018904,2]
[356968482,1743510656202,-500.0,0.00018904,2]
[356968483,1743510656211,-661.33,0.00018904,2]
[356968484,1743510656223,-1609.5,0.00018904,2]
[356968485,1743510656232,-1086.11,0.00018904,2]
[356968486,1743510656241,-500.0,0.00018904,2]
[356968487,1743510656251,-1376.57,0.00018904,2]
[356968488,1743510656261,-525.22,0.00018904,2]
[356968489,1743510656270,-557.44,0.00018904,2]
[356968490,1743510656280,-1175.01,0.00018904,2]
[356968491,1743510656290,-500.0,0.00018904,2]
[356968492,1743510656300,-500.0,0.00018904,2]
[356968493,1743510656309,-1986.96,0.00018904,2]
[356968494,1743510656319,-500.0,0.00018904,2]
[356968495,1743510656329,-172.89,0.00018904,2]
[356968496,1743510656338,-665.82,0.00018904,2]
[356968497,1743510656348,-535.92,0.00018904,2]
[356968498,1743510656358,-500.0,0.00018904,2]
[356968499,1743510656368,-500.0,0.00018904,2]
[356968500,1743510656377,-769.27,0.00018904,2]
[356968501,1743510656387,-500.0,0.00018904,2]
[356968502,1743510656398,-826.66,0.00018904,2]
[356968503,1743510656408,-505.42,0.00018904,2]
[356968504,1743510656418,-744.18,0.00018904,2]
[356968505,1743510656427,-842.38,0.00018904,2]
[356968506,1743510656437,-733.48,0.00018904,2]
[356968507,1743510656447,-751.48,0.00018904,2]
[356968508,1743510656457,-500.0,0.00018904,2]
[356968509,1743510656467,-1885.83,0.00018904,2]
[356968510,1743510656478,-500.0,0.00018904,2]
[356968511,1743510656487,-500.0,0.00018904,2]
[356968512,1743510656497,-4092.43,0.00018904,2]
[356968513,1743510656507,-2922.51,0.00018904,2]
[356968514,1743510656517,-500.0,0.00018904,2]
[356968515,1743510656526,-500.0,0.00018904,2]
[356968516,1743510656536,-592.41,0.00018904,2]
[356968517,1743510656546,-196.08,0.00018904,2]
[356968518,1743510656556,-500.0,0.00018904,2]
[356968519,1743510656565,-500.0,0.00018904,2]
[356968520,1743510656575,-500.0,0.00018904,2]
[356968521,1743510656584,-389.16833324,0.00018973,2]
[356968522,1743510656594,-357.62461923,0.00018973,2]
[356968523,1743510656604,-500.0,0.00018973,2]
[356968524,1743510656613,-500.0,0.00018973,2]
[356968525,1743510656624,-500.0,0.00018973,2]
[356968526,1743510656715,-500.0,0.00018973,2]
[356968527,1743510656728,-500.0,0.00018974,2]
[356968528,1743510656739,-558.19,0.00018974,2]